bitfinex/quotes_SOLUSD_20240712
["timestamp","ask_amount","ask_price","bid_price","bid_amount"]
[1720804328239,22.3525,138.85,138.79,18.24]
[1720804328240,15.731,138.85,138.79,18.24]
[1720804328559,23.3583581,138.89,138.8,63.24]
[1720804328728,18.24,138.85,138.8,45.0]
[1720804329048,18.24,138.85,138.8,18.24]
[1720804330461,30.5582581,138.89,138.79,15.1994]
[1720804330462,18.24,138.86,138.81,18.24]
[1720804330657,23.3583581,138.89,138.81,18.24]
[1720804330853,18.24,138.87,138.81,18.24]
[1720804331633,18.24,138.87,138.79,22.4354]
[1720804331634,23.3583581,138.89,138.82,18.24]
[1720804331833,18.24,138.87,138.82,18.24]
[1720804333231,0.8564581,138.89,138.83,24.4204]
[1720804333445,0.8564581,138.89,138.84,18.24]
[1720804333856,19.0964581,138.89,138.84,18.24]
[1720804334247,0.8564581,138.89,138.84,18.24]
[1720804334446,19.0964581,138.89,138.84,18.24]
[1720804334929,18.24,138.88,138.83,24.4204]
[1720804335334,19.0964581,138.89,138.83,24.4204]
[1720804335535,19.0964581,138.89,138.84,18.24]
[1720804335763,0.8564581,138.89,138.85,18.24]
[1720804335935,0.8564581,138.89,138.83,6.1804]
[1720804335936,0.8564581,138.89,138.86,0.43722967]
[1720804336137,0.8564581,138.89,138.86,18.24]
[1720804337068,0.8564581,138.89,138.85,18.24]
[1720804337298,0.8564581,138.89,138.86,18.24]
[1720804338977,18.24,138.87,138.79,21.4894]
[1720804339138,18.24,138.87,138.81,18.24]
[1720804339335,18.24,138.86,138.82,20.0]
[1720804340260,18.24,138.87,138.82,20.0]
[1720804340461,18.24,138.86,138.82,20.0]
[1720804340760,7.2005,138.88,138.82,20.0]
[1720804340969,0.8564581,138.89,138.8,20.0]
[1720804342163,0.8564581,138.89,138.81,45.0]
[1720804342466,0.8564581,138.89,138.82,20.0]
[1720804343063,0.8564581,138.89,138.83,45.0]
[1720804343757,0.8564581,138.89,138.84,20.0]
[1720804343956,0.8564581,138.89,138.85,45.0]
[1720804345174,0.8564581,138.89,138.86,21.5208]
[1720804346949,0.8564581,138.89,138.85,45.0]
[1720804347152,0.8564581,138.89,138.86,20.0]
[1720804348874,0.8564581,138.89,138.85,20.0]
[1720804349064,0.8564581,138.89,138.84,20.0]
[1720804349883,0.8564581,138.89,138.82,2.83792095]
[1720804350178,0.8564581,138.89,138.8,21.984]
[1720804350368,0.8564581,138.89,138.81,1.20331779]
[1720804351082,0.8564581,138.89,138.8,21.984]
[1720804351267,0.8564581,138.89,138.81,76.81632054]
[1720804351955,0.8564581,138.89,138.81,20.0]
[1720804353283,8.0565581,138.89,138.8,15.6604]
[1720804353465,0.8564581,138.89,138.77,35.03508658]
[1720804353668,45.0,138.88,138.77,35.03508658]
[1720804354063,37.1464581,138.89,138.77,35.03508658]
[1720804354476,44.3464581,138.89,138.77,35.03508658]
[1720804354682,37.1464581,138.89,138.77,35.03508658]
[1720804354860,37.1464581,138.89,138.78,45.0]
[1720804355182,37.1464581,138.89,138.79,20.0]
[1720804355388,61.3775,138.88,138.78,20.0]
[1720804355779,16.3775,138.88,138.78,20.0]
[1720804356688,16.3775,138.88,138.79,45.0]
[1720804356877,16.3775,138.88,138.8,20.0]
[1720804357591,23.5782,138.88,138.8,20.0]
[1720804358459,16.3775,138.88,138.8,20.0]
[1720804359269,0.8564581,138.89,138.81,45.0]
[1720804359460,0.8564581,138.89,138.8,20.0]
[1720804359656,8.0566581,138.89,138.78,20.0]
[1720804359861,8.0566581,138.89,138.79,45.0]
[1720804360067,7.2004,138.88,138.8,20.0]
[1720804360699,8.0565581,138.89,138.8,20.0]
[1720804361170,0.8564581,138.89,138.8,20.0]
[1720804361374,0.8564581,138.89,138.81,45.0]
[1720804362172,8.0568581,138.89,138.8,20.0]
[1720804362366,8.0568581,138.89,138.78,20.0]
[1720804363490,8.0568581,138.89,138.79,45.0]
[1720804363997,0.8564581,138.89,138.8,20.0]
[1720804364182,0.8564581,138.89,138.81,45.0]
[1720804365074,0.8564581,138.89,138.8,20.0]
[1720804365390,7.2004,138.88,138.78,20.0]
[1720804365596,7.2004,138.88,138.79,45.0]
[1720804365777,7.2004,138.88,138.8,20.0]
[1720804367698,7.2011,138.87,138.8,20.0]
[1720804368005,7.2011,138.87,138.77,23.22060734]
[1720804368006,29.8108,138.86,138.77,23.22060734]
[1720804368599,22.6092,138.86,138.77,23.22060734]
[1720804369478,0.8564581,138.89,138.78,20.0]
[1720804369701,0.8564581,138.89,138.78,65.0]
[1720804369886,15.1785,138.88,138.78,65.0]
[1720804370279,21.8026,138.88,138.78,65.0]
[1720804370784,18.14,138.87,138.82,18.14]
[1720804370982,21.8026,138.88,138.81,18.14]
[1720804370983,18.14,138.86,138.81,18.14]
[1720804371186,18.14,138.86,138.82,20.0]
[1720804372087,18.14,138.87,138.82,20.0]
[1720804372306,18.14,138.87,138.82,38.14]
[1720804372806,18.9964581,138.89,138.83,63.14]
[1720804373111,18.9964581,138.89,138.84,18.14]
[1720804373811,0.8564581,138.89,138.83,18.14]
[1720804373982,18.9964581,138.89,138.83,18.14]
[1720804375098,18.9964581,138.89,138.82,20.0]
[1720804375315,18.9964581,138.89,138.84,18.14]
[1720804375801,18.9964581,138.89,138.86,18.14]
[1720804375802,0.8564581,138.89,138.86,18.14]
[1720804376010,0.8564581,138.89,138.87,18.14]
[1720804376700,0.8564581,138.89,138.83,45.0]
[1720804376903,0.8564581,138.89,138.84,30.0]
[1720804377202,0.8564581,138.89,138.85,45.0]
[1720804377406,0.8564581,138.89,138.86,20.0]
[1720804377588,0.8564581,138.89,138.87,45.0]
[1720804381490,0.8564581,138.89,138.86,20.0]
[1720804381792,0.8564581,138.89,138.84,20.0]
[1720804381998,0.8564581,138.89,138.85,45.0]
[1720804382202,0.8564581,138.89,138.86,20.0]
[1720804382494,0.8564581,138.89,138.84,27.1974]
[1720804385112,0.8564581,138.89,138.81,13.81779462]
[1720804385113,8.0563581,138.89,138.81,7.53469462]
[1720804385300,0.8564581,138.89,138.81,7.53469462]
[1720804386594,0.8564581,138.89,138.82,45.0]
[1720804386792,0.8564581,138.89,138.81,7.53469462]
[1720804386998,0.8564581,138.89,138.82,45.0]
[1720804388015,0.8564581,138.89,138.83,20.0]
[1720804388198,0.8564581,138.89,138.84,45.0]
[1720804388898,0.8564581,138.89,138.83,20.0]
[1720804389225,0.8564581,138.89,138.82,20.0]
[1720804389521,0.8564581,138.89,138.83,45.0]
[1720804391119,0.8564581,138.89,138.82,20.0]
[1720804391712,0.8564581,138.89,138.83,45.0]
[1720804392397,0.8564581,138.89,138.82,20.0]
[1720804392595,0.8564581,138.89,138.79,30.0]
[1720804392800,0.8564581,138.89,138.8,45.0]
[1720804393009,0.8564581,138.89,138.81,20.0]
[1720804393808,8.0563581,138.89,138.79,20.0]
[1720804394316,7.2006,138.88,138.79,20.0]
[1720804394525,7.2006,138.88,138.77,405.7187]
[1720804394526,22.6283,138.87,138.75,43.00760072]
[1720804394742,7.2019,138.86,138.75,43.00760072]
[1720804395018,51.6872,138.87,138.74,6.6038]
[1720804395235,7.2021,138.85,138.73,15.9307]
[1720804395400,7.2021,138.85,138.74,15.4272]
[1720804395603,73.9842,138.86,138.74,15.4272]
[1720804396013,21.7827,138.86,138.75,20.0]
[1720804396395,21.7827,138.86,138.76,6.4211]
[1720804396733,21.7827,138.86,138.77,65.0]
[1720804397234,21.7827,138.86,138.78,7.5384898]
[1720804397517,21.7827,138.86,138.79,45.0]
[1720804399133,28.9844,138.86,138.79,45.0]
[1720804399430,21.7827,138.86,138.79,45.0]
[1720804399798,28.9842,138.86,138.79,45.0]
[1720804400612,18.15,138.84,138.79,63.15]
[1720804401226,18.15,138.83,138.79,45.0]
[1720804401917,18.15,138.84,138.79,63.15]
[1720804402113,21.7827,138.86,138.79,63.15]
[1720804402325,18.15,138.85,138.79,63.15]
[1720804402715,21.7827,138.86,138.79,45.0]
[1720804405124,28.9842,138.86,138.79,45.0]
[1720804405330,21.7827,138.86,138.79,45.0]
[1720804406632,15.4272,138.86,138.8,0.47160912]
[1720804406823,0.8564581,138.89,138.8,20.0]
[1720804407140,7.2007,138.88,138.81,45.0]
[1720804407512,8.0565581,138.89,138.81,45.0]
[1720804408634,7.2005,138.88,138.81,45.0]
[1720804410435,8.0565581,138.89,138.81,45.0]
[1720804410612,7.2005,138.88,138.81,45.0]
[1720804411817,8.0565581,138.89,138.81,45.0]
[1720804412321,0.8564581,138.89,138.81,45.0]
[1720804412804,0.8564581,138.89,138.82,20.0]
[1720804413009,0.8564581,138.89,138.83,45.0]
[1720804416218,0.8564581,138.89,138.83,61.2834]
[1720804416536,0.8564581,138.89,138.84,20.0]
[1720804416740,0.8564581,138.89,138.85,45.0]
[1720804419135,0.8564581,138.89,138.86,1.12164271]
[1720804420308,0.8564581,138.89,138.86,20.0]
[1720804425127,18.9864581,138.89,138.86,20.0]
[1720804425339,18.9864581,138.89,138.85,20.0]
[1720804425535,18.9864581,138.89,138.84,20.0]
[1720804425840,18.13,138.88,138.84,20.0]
[1720804426710,0.8564581,138.89,138.84,38.13]
[1720804427138,18.9864581,138.89,138.84,38.13]
[1720804427360,0.8564581,138.89,138.84,38.13]
[1720804428438,18.9864581,138.89,138.84,38.13]
[1720804428612,0.8564581,138.89,138.85,45.0]
[1720804428814,18.9864581,138.89,138.85,45.0]
[1720804430840,18.13,138.88,138.84,20.0]
[1720804431528,18.13,138.87,138.84,20.0]
[1720804431838,18.13,138.87,138.83,20.0]
[1720804432365,18.13,138.88,138.83,20.0]
[1720804432526,18.13,138.88,138.84,45.0]
[1720804432834,0.8564581,138.89,138.84,63.13]
[1720804433037,18.9864581,138.89,138.84,63.13]
[1720804433231,18.13,138.88,138.84,45.0]
[1720804434422,18.9864581,138.89,138.84,63.13]
[1720804436436,0.8564581,138.89,138.84,63.13]
[1720804436641,0.8564581,138.89,138.85,18.13]
[1720804436943,0.8564581,138.89,138.86,45.0]
[1720804438039,0.8564581,138.89,138.85,45.0]
[1720804439038,0.8564581,138.89,138.83,7.53532878]
[1720804439039,18.13,138.86,138.83,7.53532878]
[1720804439440,18.13,138.86,138.8,18.13]
[1720804439750,18.13,138.86,138.81,27.53731435]
[1720804440443,0.8564581,138.89,138.82,18.13]
[1720804440644,18.13,138.88,138.81,27.53731435]
[1720804440945,18.13,138.87,138.82,18.13]
[1720804441659,18.13,138.86,138.81,45.66731435]
[1720804441859,18.13,138.84,138.81,27.53731435]
[1720804442161,18.13,138.84,138.79,16.3573]
[1720804442345,18.13,138.83,138.78,36.26]
[1720804442657,18.13,138.83,138.79,7.5387801]
[1720804443352,7.2011,138.87,138.79,7.5387801]
[1720804443353,22.5536,138.88,138.79,25.6687801]
[1720804443545,18.13,138.84,138.79,25.6687801]
[1720804444061,18.13,138.84,138.79,7.5387801]
[1720804444243,18.13,138.83,138.79,7.5387801]
[1720804444444,18.13,138.82,138.79,7.5387801]
[1720804447633,18.13,138.81,138.79,7.5387801]
[1720804447938,18.13,138.8,138.79,7.5387801]
[1720804448153,18.13,138.8,138.75,15.5493]
[1720804448441,18.13,138.8,138.75,23.08999496]
[1720804449032,18.13,138.8,138.75,7.54069496]
[1720804449232,15.413,138.83,138.75,7.54069496]
[1720804449233,18.13,138.79,138.75,7.54069496]
[1720804449453,18.13,138.77,138.75,7.54069496]
[1720804450361,18.13,138.76,138.75,7.54069496]
[1720804451339,18.13,138.76,138.7,413.8157]
[1720804451544,18.13,138.75,138.72,7.54266424]
[1720804451749,18.13,138.75,138.73,20.0]
[1720804452355,18.13,138.77,138.73,20.0]
[1720804453445,15.413,138.82,138.74,63.13]
[1720804453769,18.13,138.79,138.74,18.13]
[1720804453957,18.13,138.78,138.73,53.4978]
[1720804454359,18.13,138.79,138.73,53.4978]
[1720804454650,18.13,138.78,138.74,45.0]
[1720804454841,18.13,138.78,138.73,35.3678]
[1720804455042,18.13,138.78,138.73,53.4978]
[1720804455464,18.13,138.78,138.73,35.3678]
[1720804455640,18.13,138.76,138.73,20.0]
[1720804456745,18.13,138.77,138.73,20.0]
[1720804456971,15.413,138.82,138.73,38.13]
[1720804457163,18.13,138.77,138.73,20.0]
[1720804458150,18.13,138.76,138.73,20.0]
[1720804458953,18.13,138.77,138.73,20.0]
[1720804459480,18.13,138.78,138.73,20.0]
[1720804459975,18.13,138.78,138.74,45.0]
[1720804460353,18.13,138.78,138.73,38.13]
[1720804461672,18.13,138.78,138.74,45.0]
[1720804461973,18.13,138.78,138.73,38.13]
[1720804462382,18.13,138.78,138.74,45.0]
[1720804463062,18.13,138.78,138.73,20.0]
[1720804463260,18.13,138.78,138.73,38.13]
[1720804463461,18.13,138.78,138.73,20.0]
[1720804464357,18.13,138.78,138.73,38.13]
[1720804466759,18.13,138.8,138.75,18.13]
[1720804467868,18.13,138.8,138.74,63.13]
[1720804468169,18.13,138.78,138.75,20.0]
[1720804468373,18.13,138.79,138.75,20.0]
[1720804469459,18.13,138.8,138.75,20.0]
[1720804470377,18.13,138.8,138.75,38.13]
[1720804470677,18.13,138.81,138.76,45.0]
[1720804471256,18.13,138.8,138.75,20.0]
[1720804471456,18.13,138.78,138.73,38.13]
[1720804471759,18.13,138.78,138.73,20.0]
[1720804472154,18.13,138.78,138.72,25.67191347]
[1720804472366,18.13,138.78,138.73,38.13]
[1720804472774,18.13,138.8,138.74,18.13]
[1720804473784,15.413,138.82,138.76,18.13]
[1720804473962,33.543,138.82,138.76,18.13]
[1720804475060,18.13,138.8,138.75,18.13]
[1720804475377,18.13,138.79,138.74,18.13]
[1720804475582,18.13,138.79,138.75,45.0]
[1720804476487,18.13,138.79,138.74,18.13]
[1720804476706,18.13,138.78,138.73,38.13]
[1720804477173,18.13,138.79,138.74,18.13]
[1720804477876,18.13,138.8,138.74,18.13]
[1720804478489,18.13,138.79,138.74,18.13]
[1720804480667,18.13,138.8,138.74,18.13]
[1720804481393,18.13,138.79,138.73,20.0]
[1720804481688,18.13,138.79,138.73,38.13]
[1720804482391,18.13,138.78,138.73,38.13]
[1720804482768,15.413,138.82,138.74,18.13]
[1720804482962,18.13,138.8,138.74,18.13]
[1720804483800,18.13,138.79,138.74,18.13]
[1720804484577,18.13,138.79,138.73,27.54124804]
[1720804484774,18.13,138.79,138.73,45.67124804]
[1720804485086,18.13,138.8,138.74,63.13]
[1720804485398,18.13,138.79,138.74,63.13]
[1720804485597,18.13,138.8,138.74,63.13]
[1720804485899,15.413,138.82,138.73,45.67124804]
[1720804485900,18.13,138.79,138.73,45.67124804]
[1720804486577,18.13,138.78,138.73,45.67124804]
[1720804487878,18.13,138.79,138.73,45.67124804]
[1720804488406,18.13,138.79,138.74,18.13]
[1720804490703,18.13,138.8,138.74,18.13]
[1720804490888,18.13,138.8,138.75,18.13]
[1720804492181,15.413,138.82,138.75,18.13]
[1720804492509,18.13,138.8,138.75,18.13]
[1720804493005,18.13,138.79,138.73,45.67124804]
[1720804493391,18.13,138.78,138.73,45.67124804]
[1720804494512,18.13,138.78,138.73,27.54124804]
[1720804495008,18.13,138.78,138.73,45.67124804]
[1720804495180,18.13,138.78,138.73,27.54124804]
[1720804496175,18.13,138.78,138.73,45.67124804]
[1720804496877,22.6167,138.82,138.74,18.13]
[1720804496878,18.13,138.79,138.74,18.13]
[1720804497305,18.13,138.8,138.74,18.13]
[1720804497613,18.13,138.8,138.75,18.13]
[1720804499501,18.13,138.8,138.74,18.13]
[1720804500602,18.13,138.81,138.75,15.6331]
[1720804500808,18.13,138.81,138.75,33.7631]
[1720804500988,18.13,138.8,138.75,33.7631]
[1720804501304,18.13,138.78,138.73,27.54117492]
[1720804501909,18.13,138.78,138.73,7.54117492]
[1720804502206,7.2048,138.8,138.73,7.54117492]
[1720804502207,18.13,138.76,138.73,7.54117492]
[1720804502720,18.13,138.75,138.73,7.54117492]
[1720804504395,18.13,138.76,138.73,7.54117492]
[1720804505492,18.13,138.75,138.73,7.54117492]
[1720804505894,87.8234,138.8,138.73,7.54117492]
[1720804505895,18.13,138.76,138.73,7.54117492]
[1720804506390,18.13,138.75,138.73,7.54117492]
[1720804506596,87.8234,138.8,138.73,7.54117492]
[1720804506597,18.13,138.78,138.73,7.54117492]
[1720804506999,18.13,138.77,138.73,7.54117492]
[1720804507185,15.3034,138.8,138.73,7.54117492]
[1720804507186,22.5082,138.8,138.73,7.54117492]
[1720804507386,18.13,138.77,138.73,7.54117492]
[1720804508114,18.13,138.78,138.73,25.67117492]
[1720804508521,18.13,138.77,138.73,7.54117492]
[1720804509399,7.2067,138.76,138.73,7.54117492]
[1720804509603,18.13,138.74,138.68,15.7065]
[1720804509801,18.13,138.73,138.68,23.25120622]
[1720804510412,7.2067,138.76,138.68,23.25120622]
[1720804510413,18.13,138.74,138.68,41.38120622]
[1720804510703,18.13,138.74,138.68,23.25120622]
[1720804511113,18.13,138.74,138.69,38.13]
[1720804511419,18.13,138.75,138.7,18.13]
[1720804511802,18.13,138.75,138.69,20.0]
[1720804512002,18.13,138.75,138.69,38.13]
[1720804512209,18.13,138.74,138.69,38.13]
[1720804512401,18.13,138.74,138.69,20.0]
[1720804512602,18.13,138.74,138.69,38.13]
[1720804513403,18.13,138.75,138.69,38.13]
[1720804513732,13.2139,138.79,138.7,18.13]
[1720804513912,18.13,138.75,138.7,18.13]
[1720804515014,18.13,138.75,138.69,38.13]
[1720804515217,18.13,138.74,138.69,38.13]
[1720804515635,18.13,138.72,138.69,20.0]
[1720804516121,7.2077,138.74,138.68,7.54470622]
[1720804516337,45.0,138.78,138.65,34.381]
[1720804516338,18.13,138.7,138.65,34.381]
[1720804516494,18.13,138.7,138.65,423.881]
[1720804516695,18.13,138.7,138.66,7.54594572]
[1720804517313,18.13,138.69,138.66,7.54594572]
[1720804517827,18.13,138.67,138.61,34.381]
[1720804518128,18.13,138.66,138.63,7.54789544]
[1720804518837,18.13,138.69,138.64,18.13]
[1720804519218,6.1182,138.74,138.63,7.54789544]
[1720804519522,18.13,138.72,138.67,18.13]
[1720804520223,18.13,138.71,138.66,18.13]
[1720804521630,18.13,138.72,138.67,18.13]
[1720804521836,7.2062,138.77,138.69,18.13]
[1720804522001,18.13,138.74,138.69,18.13]
[1720804522437,18.13,138.75,138.7,18.13]
[1720804523311,18.13,138.75,138.71,1.30443424]
[1720804524129,18.13,138.75,138.7,18.13]
[1720804524323,18.13,138.74,138.69,18.13]
[1720804525638,18.13,138.73,138.68,18.13]
[1720804528606,18.13,138.74,138.68,18.13]
[1720804528814,18.13,138.74,138.69,18.13]
[1720804529305,18.13,138.75,138.7,18.13]
[1720804529618,15.6535,138.79,138.71,20.0]
[1720804529822,18.13,138.78,138.72,18.13]
[1720804530420,18.13,138.78,138.73,18.13]
[1720804530846,6.3649,138.82,138.73,18.13]
[1720804530847,16.1366,138.83,138.76,18.13]
[1720804531135,16.1366,138.83,138.77,18.13]
[1720804531336,34.2666,138.83,138.77,18.13]
[1720804531631,18.13,138.82,138.77,18.13]
[1720804532658,13.6204,138.86,138.74,6.229]
[1720804532810,16.1366,138.87,138.76,16.5471]
[1720804533005,23.3379,138.87,138.77,65.0]
[1720804533230,16.1366,138.87,138.77,65.0]
[1720804533810,23.3377,138.87,138.77,65.0]
[1720804534342,16.1366,138.87,138.77,20.0]
[1720804534629,7.2015,138.86,138.77,20.0]
[1720804535012,7.2021,138.85,138.77,20.0]
[1720804535532,7.2016,138.86,138.77,20.0]
[1720804535835,7.2021,138.85,138.78,1.14704557]
[1720804536025,7.2021,138.85,138.77,20.0]
[1720804536625,23.3378,138.87,138.77,20.0]
[1720804536823,16.1366,138.87,138.77,20.0]
[1720804537624,7.2009,138.88,138.77,20.0]
[1720804537932,45.0,138.87,138.77,20.0]
[1720804538131,7.2009,138.88,138.77,20.0]
[1720804538326,7.2009,138.88,138.78,45.0]
[1720804538542,52.2011,138.87,138.77,20.0]
[1720804539031,52.2011,138.87,138.78,45.0]
[1720804539337,52.2011,138.87,138.77,20.0]
[1720804540540,7.2017,138.86,138.77,20.0]
[1720804540718,81.31,138.87,138.77,20.0]
[1720804541912,7.2015,138.86,138.77,20.0]
[1720804542118,88.5111,138.87,138.77,20.0]
[1720804542640,52.2011,138.87,138.77,20.0]
[1720804543139,7.2015,138.86,138.77,20.0]
[1720804543732,45.0,138.87,138.77,20.0]
[1720804544540,52.2013,138.87,138.77,20.0]
[1720804544724,7.2021,138.85,138.77,20.0]
[1720804544924,45.0,138.87,138.77,20.0]
[1720804545340,7.2007,138.88,138.78,45.0]
[1720804545542,7.2007,138.88,138.79,6.1642]
[1720804547460,0.8564581,138.89,138.79,6.1642]
[1720804547647,45.8564581,138.89,138.79,6.1642]
[1720804547847,7.2006,138.88,138.79,6.1642]
[1720804548350,7.201,138.87,138.79,6.1642]
[1720804549216,45.8564581,138.89,138.79,6.1642]
[1720804549529,45.8564581,138.89,138.8,16.0313]
[1720804549924,53.0567581,138.89,138.8,16.0313]
[1720804550447,7.201,138.87,138.8,16.0313]
[1720804552530,18.15,138.86,138.8,34.1813]
[1720804553347,18.15,138.85,138.8,16.0313]
[1720804553545,18.15,138.85,138.8,34.1813]
[1720804553764,18.15,138.84,138.8,16.0313]
[1720804554637,18.15,138.84,138.8,17.47020023]
[1720804554828,18.15,138.85,138.8,35.62020023]
[1720804555025,18.15,138.85,138.8,34.1813]
[1720804555251,18.15,138.86,138.81,18.15]
[1720804555846,18.15,138.85,138.8,16.0313]
[1720804557138,18.15,138.85,138.8,34.1813]
[1720804557352,18.15,138.85,138.75,2.89538181]
[1720804557353,18.15,138.81,138.75,2.89538181]
[1720804557528,15.272,138.85,138.75,18.15]
[1720804557529,18.15,138.8,138.75,18.15]
[1720804557726,18.15,138.79,138.74,48.2275857]
[1720804558149,18.15,138.82,138.77,18.15]
[1720804558450,18.15,138.83,138.78,18.15]
[1720804559228,18.15,138.84,138.78,18.15]
[1720804559454,18.15,138.84,138.79,18.15]
[1720804559956,18.15,138.84,138.79,33.7635]
[1720804560254,18.15,138.84,138.79,15.6135]
[1720804560554,18.15,138.83,138.79,15.6135]
[1720804561947,18.15,138.81,138.79,15.6135]
[1720804562253,18.15,138.81,138.76,33.7635]
[1720804562448,18.0026,138.87,138.76,15.6135]
[1720804562449,18.15,138.8,138.76,15.6135]
[1720804562751,18.15,138.81,138.76,33.7635]
[1720804562963,18.15,138.82,138.77,18.15]
[1720804563256,18.15,138.84,138.78,18.15]
[1720804563432,0.8564581,138.89,138.81,15.6135]
[1720804563639,18.15,138.86,138.81,33.7635]
[1720804564228,18.15,138.87,138.81,33.7635]
[1720804564555,0.8564581,138.89,138.81,15.6135]
[1720804564732,8.0567581,138.89,138.81,15.6135]
[1720804564939,0.8564581,138.89,138.81,15.6135]
[1720804565157,7.2007,138.88,138.81,15.6135]
[1720804566347,7.2011,138.87,138.81,15.6135]
[1720804566651,7.2015,138.86,138.81,15.6135]
[1720804566865,7.2011,138.87,138.81,15.6135]
[1720804567033,37.1464581,138.89,138.77,45.0]
[1720804567034,37.1464581,138.89,138.77,22.1415]
[1720804567236,7.2019,138.86,138.78,20.0]
[1720804567559,7.202,138.85,138.77,22.1415]
[1720804570251,43.4916,138.86,138.77,22.1415]
[1720804570458,7.2016,138.86,138.77,22.1415]
[1720804571755,45.0,138.88,138.77,22.1415]
[1720804572247,7.2017,138.86,138.77,22.1415]
[1720804572552,7.201,138.87,138.78,45.0]
[1720804573062,7.2023,138.85,138.77,22.1415]
[1720804573659,7.2026,138.84,138.77,22.1415]
[1720804574047,7.2022,138.85,138.77,22.1415]
[1720804574351,7.2028,138.84,138.77,22.1415]
[1720804574764,7.2031,138.83,138.77,22.1415]
[1720804575458,7.2044,138.81,138.76,7.5398963]
[1720804575662,81.29,138.82,138.76,7.5398963]
[1720804575956,7.2054,138.79,138.73,15.8543]
[1720804576163,7.2047,138.8,138.73,15.8543]
[1720804576459,13.2813,138.81,138.73,15.8543]
[1720804576636,7.2032,138.83,138.73,15.8543]
[1720804576835,7.2038,138.82,138.73,15.8543]
[1720804577251,7.2027,138.84,138.75,6.536]
[1720804577476,45.0,138.83,138.75,6.536]
[1720804577667,7.2027,138.84,138.75,6.536]
[1720804578173,7.2031,138.83,138.75,6.536]
[1720804578464,7.2036,138.82,138.75,6.536]
[1720804578664,7.2032,138.83,138.75,6.536]
[1720804578961,54.295,138.85,138.75,6.536]
[1720804579169,45.0,138.84,138.75,6.536]
[1720804579351,7.2042,138.81,138.75,6.536]
[1720804580452,7.2047,138.8,138.73,15.8543]
[1720804580669,36.29,138.82,138.73,15.8543]
[1720804580956,7.2047,138.8,138.73,15.8543]
[1720804581865,7.2043,138.81,138.73,15.8543]
[1720804582047,43.4937,138.82,138.73,15.8543]
[1720804582449,7.2041,138.81,138.73,15.8543]
[1720804582870,36.29,138.82,138.73,15.8543]
[1720804583172,36.29,138.82,138.74,45.0]
[1720804583358,43.4936,138.82,138.74,45.0]
[1720804583673,7.2041,138.81,138.73,15.8543]
[1720804583868,7.2046,138.8,138.73,15.8543]
[1720804584177,54.2991,138.82,138.73,15.8543]
[1720804584481,7.2048,138.8,138.73,15.8543]
[1720804584983,7.2061,138.77,138.73,15.8543]
[1720804585172,45.0,138.81,138.73,15.8543]
[1720804586361,52.2041,138.81,138.73,15.8543]